fUSD/lending_fUSD_20240129
["ID","MTS","AMOUNT","RATE_DAILY","PERIOD"]
[312992212,1706569845231,-150.0,0.00049977,30]
[312992213,1706569845242,-150.0,0.00049977,30]
[312992214,1706569845253,-639.07205981,0.0004998,5]
[312992215,1706569845263,-151.013,0.00049998,59]
[312992216,1706569845274,-3001.73056171,0.0005,30]
[312992217,1706569845283,-5000.0,0.0005,30]
[312992218,1706569845293,-3716.0,0.0005,30]
[312992219,1706569845302,-2000.0,0.0005,30]
[312992220,1706569845311,-359.89930562,0.0005,120]
[312992221,1706569845320,-2803.86892119,0.0005,10]
[312992222,1706569845330,-2154.65182416,0.0005,4]
[312992223,1706569845340,-570.32545003,0.0005,4]
[312992224,1706569845349,-960.39447797,0.0005,30]
[312992225,1706569845358,-7864.35272421,0.0005,4]
[312992226,1706569845368,-168.39041318,0.0005,7]
[312992227,1706569845377,-500.0,0.0005,6]
[312992228,1706569845386,-5135.59798777,0.0005,60]
[312992229,1706569845395,-526.50470538,0.0005,120]
[312992230,1706569845404,-1520.537964,0.0005,30]
[312992231,1706569845413,-318.70092462,0.0005,30]
[312992232,1706569845423,-581.10602505,0.0005,30]
[312992233,1706569845432,-2000.0,0.0005,15]
[312992234,1706569845441,-200.0,0.0005,15]
[312992235,1706569845450,-20623.0,0.0005,15]
[312992236,1706569845459,-1464.04513116,0.0005,120]
[312992237,1706569845468,-249.80811335,0.0005,30]
[312992238,1706569845479,-4736.44,0.0005,120]
[312992239,1706569845488,-379.0,0.0005,30]
[312992240,1706569845497,-6407.0,0.0005,30]
[312992241,1706569845507,-150.0,0.00050008,30]
[312992242,1706569845518,-450.0,0.0005002,5]
[312992243,1706569845529,-150.0,0.0005003,30]
[312992244,1706569845541,-150.0,0.00050047,30]
[312992245,1706569845550,-150.0,0.00050059,30]
[312992246,1706569845560,-151.013,0.00050098,59]
[312992247,1706569845570,-150.0,0.00050116,30]
[312992248,1706569845579,-2007.8,0.0005012,2]
[312992249,1706569845588,-150.0,0.00050158,30]
[312992250,1706569845597,-919.59915952,0.00050173,26]
[312992251,1706569845607,-150.0,0.00050186,30]
[312992252,1706569845616,-150.0,0.00050196,30]
[312992253,1706569845626,-151.013,0.00050198,59]
[312992254,1706569845636,-150.0,0.00050256,30]
[312992255,1706569845646,-150.0,0.0005028,30]
[312992256,1706569845659,-151.013,0.00050298,60]
[312992257,1706569845669,-150.0,0.00050326,30]
[312992258,1706569845678,-864.88861439,0.0005035,2]
[312992259,1706569845687,-150.0,0.00050351,30]
[312992260,1706569845695,-1180.14658563,0.00050374,120]
[312992261,1706569845705,-150.0,0.00050384,30]
[312992263,1706569845871,-150.0,0.00050396,30]
[312992264,1706569845881,-151.013,0.00050398,60]
[312992265,1706569845891,-150.0,0.00050431,30]
[312992266,1706569845901,-150.0,0.00050431,30]
[312992267,1706569845910,-150.0,0.00050431,30]
[312992268,1706569845919,-150.0,0.00050466,30]
[312992269,1706569845929,-151.013,0.00050498,58]
[312992270,1706569845939,-2000.0,0.000505,15]
[312992271,1706569845948,-240.42220236,0.000505,2]
[312992272,1706569845957,-150.0,0.00050536,30]
[312992273,1706569845967,-150.0,0.00050555,30]
[312992274,1706569845978,-1341.0,0.0005056,4]
[312992275,1706569845988,-150.0,0.00050572,30]
[312992276,1706569845998,-151.013,0.00050598,58]
[312992277,1706569846009,-1443.56375187,0.000506,14]
[312992278,1706569846019,-150.0,0.00050606,30]
[312992279,1706569846029,-3267.0,0.00050668,120]
[312992280,1706569846040,-2141.0,0.00050668,120]
[312992281,1706569846050,-293.73,0.00050668,120]
[312992282,1706569846061,-150.0,0.00050672,30]
[312992283,1706569846071,-150.0,0.00050676,30]
[312992284,1706569846081,-166.6,0.00050678,120]
[312992285,1706569846091,-3267.0,0.00050678,120]
[312992286,1706569846101,-2141.0,0.00050678,120]
[312992287,1706569846110,-150.5,0.00050678,120]
[312992288,1706569846119,-150.5,0.00050688,120]
[312992289,1706569846128,-3267.0,0.00050688,120]
[312992290,1706569846137,-2141.0,0.00050688,120]
[312992291,1706569846146,-150.5,0.00050688,120]
[312992292,1706569846156,-1957.15384108,0.00050697,2]
[312992293,1706569846166,-151.013,0.00050698,59]
[312992294,1706569846175,-150.0,0.00050699,10]
[312992295,1706569846184,-153.04463476,0.00050699,10]
[312992296,1706569846194,-1337.65060988,0.000507,120]
[312992297,1706569846203,-2000.0,0.000507,2]
[312992298,1706569846212,-201.756377,0.000507,30]
[312992299,1706569846221,-1000000.0,0.000507,120]
[312992300,1706569846231,-151.0,0.000507,14]
[312992301,1706569846240,-261.859326,0.000507,14]
[312992302,1706569846249,-195.516952,0.000507,14]
[312992303,1706569846258,-195.516952,0.000507,14]
[312992304,1706569846268,-151.0,0.000507,14]
[312992305,1706569846277,-151.0,0.000507,14]
[312992306,1706569846286,-150.0,0.00050704,30]
[312992307,1706569846295,-150.0,0.00050746,30]
[312992308,1706569846304,-150.0,0.0005076,30]
[312992309,1706569846313,-150.63044477,0.00050765,47]
[312992310,1706569846323,-150.5,0.00050768,120]
[312992311,1706569846333,-500.0,0.0005077,30]
[312992312,1706569846344,-150.5,0.00050778,120]
[312992313,1706569846354,-150.5,0.00050788,120]
[312992314,1706569846363,-151.013,0.00050798,60]
[312992315,1706569846373,-150.0,0.00050815,30]
[312992316,1706569846382,-150.0,0.00050829,2]
[312992317,1706569846391,-150.0,0.00050885,30]
[312992318,1706569846402,-150.0,0.00050885,30]
[312992319,1706569846412,-150.0,0.00050885,30]
[312992320,1706569846421,-151.013,0.00050898,58]
[312992321,1706569846430,-160.37335377,0.000509,27]
[312992322,1706569846440,-4071.19748898,0.000509,72]
[312992323,1706569846450,-150.0,0.00050948,30]
[312992324,1706569846459,-150.0,0.00050955,30]
[312992325,1706569846470,-3267.0,0.0005097,120]
[312992326,1706569846479,-2141.0,0.0005097,120]
[312992327,1706569846488,-150.0,0.00050976,30]
[312992328,1706569846497,-3267.0,0.0005098,120]
[312992329,1706569846507,-2141.0,0.0005098,120]
[312992330,1706569846516,-3267.0,0.0005099,120]
[312992331,1706569846525,-2141.0,0.0005099,120]
[312992332,1706569846533,-150.0,0.00050992,30]
[312992333,1706569846543,-151.013,0.00050998,59]
[312992334,1706569846551,-2000.0,0.00051,30]
[312992335,1706569846560,-1000.0,0.00051,2]
[312992336,1706569846569,-511280.9,0.00051,120]
[312992337,1706569846578,-150.00754565,0.00051,14]
[312992338,1706569846588,-274.346435,0.00051,14]
[312992339,1706569846597,-274.346435,0.00051,14]
[312992340,1706569846607,-150.0,0.00051,120]
[312992341,1706569846615,-151.0,0.00051,14]
[312992342,1706569846624,-151.0,0.00051,14]
[312992343,1706569846633,-151.0,0.00051,14]
[312992344,1706569846642,-151.0,0.00051,14]
[312992345,1706569846651,-151.0,0.00051,14]
[312992346,1706569846661,-151.0,0.00051,14]
[312992347,1706569846670,-150.0,0.00051,2]
[312992348,1706569846678,-151.0,0.00051,14]
[312992349,1706569846687,-151.0,0.00051,14]
[312992350,1706569846696,-151.0,0.00051,14]
[312992351,1706569846705,-151.0,0.00051,14]
[312992352,1706569846714,-151.0,0.00051,14]
[312992353,1706569846723,-286881.51690761,0.00051,120]
[312992354,1706569846979,-713118.48309239,0.00051,120]
[312992355,1706569846989,-150.0,0.00051025,30]
[312992356,1706569846998,-4071.19748891,0.00051032,73]
[312992357,1706569847007,-208.0,0.00051042,20]
[312992358,1706569847017,-500.0,0.00051044,30]
[312992359,1706569847026,-150.0,0.00051051,30]
[312992360,1706569847035,-150.0,0.00051095,30]
[312992361,1706569847044,-151.013,0.00051098,59]
[312992362,1706569847053,-150.0,0.00051113,30]
[312992363,1706569847062,-150.0,0.00051136,30]
[312992364,1706569847071,-195.96504941,0.00051151,120]
[312992365,1706569847080,-4071.19748891,0.00051164,74]
[312992366,1706569847090,-150.0,0.00051165,30]
[312992367,1706569847099,-1208.0,0.00051179,30]
[312992368,1706569847109,-151.013,0.00051198,60]
[312992369,1706569847118,-196.83604684,0.00051222,5]
[312992370,1706569847127,-150.0,0.00051235,30]
[312992371,1706569847136,-150.0,0.00051249,30]
[312992372,1706569847145,-4071.19748891,0.00051295,74]
[312992373,1706569847155,-151.013,0.00051298,59]
[312992374,1706569847164,-1980.61003212,0.000513,14]
[312992375,1706569847173,-150.0,0.00051305,30]
[312992376,1706569847182,-644.14,0.00051308,120]
[312992377,1706569847191,-150.0,0.00051313,30]
[312992378,1706569847200,-500.0,0.00051317,30]
[312992379,1706569847209,-150.0,0.00051324,30]
[312992380,1706569847219,-200.0,0.00051329,10]
[312992381,1706569847228,-150.0,0.0005134,30]
[312992382,1706569847239,-2007.8,0.0005135,2]
[312992383,1706569847249,-150.0,0.00051375,30]
[312992384,1706569847258,-445.0,0.0005139,2]
[312992385,1706569847269,-151.013,0.00051398,59]
[312992386,1706569847279,-1000.0,0.000514,5]
[312992387,1706569847288,-88850.09699313,0.000514,120]
[312992388,1706569847846,-50000.25050553,0.000514,120]
[312992389,1706569848147,-327.56288455,0.00022817,2]
[312992390,1706569848156,-249.22854926,0.00029825,16]
[312992391,1706569848180,-662.93238929,0.00029825,16]
[312992392,1706569848191,-457.58376213,0.000339,2]
[312992393,1706569848201,-447.68616516,0.00033999,2]
[312992394,1706569848211,-245288.51934185,0.000514,120]
[312992395,1706569848224,-2307.87070252,0.000514,120]
[312992396,1706569848294,179.38954726,0.00022768,2]
[312992397,1706569969798,163.39541532,0.00031299,120]
[312992398,1706569992044,661.63700482,0.00022798,2]
[312992399,1706570005511,-1206.38010345,0.00022821,2]
[312992400,1706570005536,-385.22896696,0.00022822,2]
[312992401,1706570005560,-327.56288455,0.00022824,2]
[312992402,1706570005584,-327.56288455,0.0002283,2]
[312992403,1706570005608,-327.56288455,0.00022836,2]
[312992404,1706570005632,-327.56288455,0.00022843,2]
[312992405,1706570005658,-327.56288455,0.00022849,2]
[312992406,1706570005682,-327.56288455,0.00022855,2]
[312992407,1706570005705,-327.56288455,0.00022862,2]
[312992408,1706570005729,-327.56288455,0.00022868,2]
[312992409,1706570005759,-327.56288455,0.00022875,2]
[312992410,1706570005786,-499.99,0.00022875,2]
[312992411,1706570005810,-1627.05067148,0.00022877,4]
[312992412,1706570005834,-279.32997636,0.00022878,2]
[312992413,1706570005863,-21827.91294242,0.00022878,2]
[312992414,1706570005891,-1000.0,0.00022879,2]
[312992415,1706570005915,-38290.2934255,0.00022879,2]
[312992416,1706570065335,263.71,0.00025089,10]
[312992418,1706570446676,664.39,0.00020386,2]
[312992419,1706570458383,-1741.40993,0.00041827,30]
[312992420,1706570458407,-306.682723,0.00041827,30]
[312992421,1706570462703,-713.30733836,0.0004,30]
[312992422,1706570462728,-5000.0,0.0004,35]
[312992423,1706570462752,-534.50750058,0.00041095,120]
[312992424,1706570462777,-547.29656313,0.00041362,34]
[312992425,1706570462799,-684.951712,0.000418,37]
[312992426,1706570462823,-926.81581259,0.00043,30]
[312992427,1706570462847,-500.0,0.00043835,120]
[312992428,1706570462870,-500.0,0.00043835,120]
[312992429,1706570462892,-154.75584348,0.00043835,120]
[312992430,1706570462914,-1600.0,0.00044111,30]
[312992431,1706570462936,-547.29656313,0.00044775,39]
[312992432,1706570463189,-743.78204118,0.00045,30]
[312992433,1706570463215,-944.80741323,0.00045,30]
[312992434,1706570463241,-187.5,0.00046575,120]
[312992435,1706570463267,-151.013,0.00046798,54]
[312992436,1706570463290,-2080.04,0.00046849,120]
[312992437,1706570463314,-151.013,0.00046898,54]
[312992438,1706570463338,-150.84349499,0.00046945,33]
[312992439,1706570463361,-151.013,0.00046998,54]
[312992440,1706570463384,-464.9459575,0.00047,48]
[312992441,1706570463407,-151.013,0.00047098,55]
[312992442,1706570463430,-151.013,0.00047198,55]
[312992443,1706570463453,-151.013,0.00047298,55]
[312992444,1706570463475,-151.013,0.00047398,55]
[312992445,1706570463498,-151.013,0.00047498,56]
[312992446,1706570463521,-151.013,0.00047598,56]
[312992447,1706570463544,-151.013,0.00047698,57]
[312992448,1706570463568,-151.013,0.00047798,57]
[312992449,1706570463592,-151.013,0.00047898,57]
[312992450,1706570463616,-7999.99,0.000479,30]
[312992451,1706570463637,-150.0,0.00047933,30]
[312992452,1706570463660,-151.013,0.00047998,57]
[312992453,1706570463684,-300.0,0.00048,30]
[312992454,1706570463706,-600.0,0.00048,49]
[312992455,1706570463729,-151.013,0.00048098,58]
[312992456,1706570463750,-547.29656313,0.00048187,44]
[312992457,1706570463773,-151.013,0.00048198,58]
[312992458,1706570463802,-1609.96617332,0.00048208,30]
[312992459,1706570463827,-150.84349499,0.00048216,37]
[312992460,1706570463850,-151.013,0.00048298,58]
[312992461,1706570463875,-151.013,0.00048398,58]
[312992462,1706570463904,-151.013,0.00048498,58]
[312992463,1706570463927,-151.013,0.00048598,59]
[312992464,1706570463953,-151.013,0.00048698,59]
[312992465,1706570463979,-151.013,0.00048798,59]
[312992466,1706570464007,-151.013,0.00048898,59]
[312992467,1706570464030,-151.013,0.00048998,59]
[312992468,1706570464053,-600.0,0.00049,50]
[312992469,1706570464077,-151.013,0.00049098,59]
[312992470,1706570464100,-151.013,0.00049198,58]
[312992471,1706570464123,-151.013,0.00049298,58]
[312992472,1706570464144,-375.0,0.00049315,120]
[312992473,1706570464168,-151.013,0.00049398,58]
[312992474,1706570464194,-150.84349499,0.00049487,42]
[312992475,1706570464218,-151.013,0.00049498,58]
[312992476,1706570464243,-151.013,0.00049598,58]
[312992477,1706570464268,-151.013,0.00049698,59]
[312992478,1706570464294,-151.013,0.00049798,59]
[312992479,1706570464317,-151.013,0.00049898,59]
[312992480,1706570464342,-151.013,0.00049998,59]
[312992481,1706570464366,-500.0,0.00049999,120]
[312992482,1706570464388,-500.0,0.00049999,120]
[312992483,1706570464411,-157.83561554,0.00049999,120]
[312992484,1706570464434,-500.0,0.00049999,120]
[312992485,1706570464456,-454.19256943,0.00049999,120]
[312992486,1706570464479,-500.0,0.00049999,120]
[312992487,1706570464503,-500.0,0.00049999,120]
[312992488,1706570464526,-363.24795699,0.00049999,120]
[312992489,1706570464549,-238.23080022,0.00049999,120]
[312992490,1706570464573,-246.17477962,0.00049999,120]
[312992491,1706570464598,-500.0,0.00049999,120]
[312992492,1706570464620,-500.0,0.00049999,120]
[312992493,1706570464645,-376.07820678,0.00049999,120]
[312992494,1706570464669,-500.0,0.00049999,120]
[312992495,1706570464692,-500.0,0.00049999,120]
[312992496,1706570464717,-500.0,0.00049999,120]
[312992497,1706570464741,-500.0,0.00049999,120]
[312992498,1706570464763,-500.0,0.00049999,120]
[312992499,1706570464785,-500.0,0.00049999,120]
[312992500,1706570464807,-500.0,0.00049999,120]
[312992501,1706570464829,-500.0,0.00049999,120]
[312992502,1706570464851,-500.0,0.00049999,120]
[312992503,1706570464873,-500.0,0.00049999,120]
[312992504,1706570464897,-500.0,0.00049999,120]
[312992505,1706570464920,-500.0,0.00049999,120]
[312992506,1706570464941,-499.99999999,0.00049999,120]
[312992507,1706570464963,-28928.88093057,0.0005,30]
[312992508,1706570464985,-1000.0,0.0005,120]
[312992509,1706570465011,-359.89930562,0.0005,120]
[312992510,1706570465043,-4736.43,0.0005,120]
[312992511,1706570465068,-600.0,0.0005,51]
[312992512,1706570465092,-5135.59798777,0.0005,60]
[312992513,1706570465116,-500.0,0.0005,30]
[312992514,1706570465138,-200.0,0.0005,60]
[312992515,1706570465161,-1000.0,0.0005,50]
[312992516,1706570465188,-1000.0,0.0005,50]
[312992517,1706570465211,-1000.0,0.0005,50]
[312992518,1706570465235,-1000.0,0.0005,50]
[312992519,1706570465257,-379.0,0.0005,30]
[312992520,1706570465282,-151.013,0.00050098,59]
[312992521,1706570465306,-151.013,0.00050198,59]
[312992522,1706570465332,-151.013,0.00050298,59]
[312992523,1706570465358,-151.013,0.00050398,59]
[312992524,1706570465383,-151.013,0.00050498,59]
[312992525,1706570465414,-151.013,0.00050598,60]
[312992526,1706570465438,-2141.0,0.0005067,120]
[312992527,1706570465462,-2141.0,0.0005068,120]
[312992528,1706570465486,-166.6,0.0005068,120]
[312992529,1706570465510,-2141.0,0.0005069,120]
[312992530,1706570465535,-150.5,0.0005069,120]
[312992531,1706570465560,-151.013,0.00050698,60]
[312992532,1706570465585,-201.756377,0.000507,30]
[312992533,1706570465613,-150.84349499,0.00050758,47]
[312992534,1706570465793,-151.013,0.00050798,60]
[312992535,1706570465817,-1000.0,0.000508,30]
[312992536,1706570465842,-1000.0,0.000508,30]
[312992537,1706570465867,-1000.0,0.000508,30]
[312992538,1706570465889,-1000.0,0.000508,30]
[312992539,1706570465912,-1000.0,0.000508,30]
[312992540,1706570465936,-1000.0,0.000508,30]
[312992541,1706570465959,-1000.0,0.000508,30]
[312992542,1706570465983,-833.76,0.000508,30]
[312992543,1706570466014,-151.013,0.00050898,60]
[312992544,1706570466039,-1208.0,0.00050968,30]
[312992545,1706570466063,-293.73,0.0005097,120]
[312992546,1706570466089,-3267.0,0.0005097,120]
[312992547,1706570466112,-3267.0,0.0005097,120]
[312992548,1706570466135,-150.5,0.0005097,120]
[312992549,1706570466158,-2141.0,0.0005097,120]
[312992550,1706570466180,-150.5,0.0005098,120]
[312992551,1706570466203,-3267.0,0.0005098,120]
[312992552,1706570466231,-3267.0,0.0005098,120]
[312992553,1706570466254,-150.5,0.0005098,120]
[312992554,1706570466278,-2141.0,0.0005098,120]
[312992555,1706570466301,-150.5,0.0005099,120]
[312992556,1706570466325,-3267.0,0.0005099,120]
[312992557,1706570466348,-3267.0,0.0005099,120]
[312992558,1706570466373,-150.5,0.0005099,120]
[312992559,1706570466401,-265.64,0.0005099,120]
[312992560,1706570466424,-2141.0,0.0005099,120]
[312992561,1706570466451,-151.013,0.00050998,60]
[312992562,1706570466475,-57514.30334694,0.00050999,120]
[312992563,1706570466499,-1000.0,0.00051,120]
[312992564,1706570466523,-1000.0,0.00051,120]
[312992565,1706570466547,-600.0,0.00051,52]
[312992566,1706570466573,-1043167.71,0.00051,120]
[312992567,1706570466597,-1000.0,0.00051,30]
[312992568,1706570466621,-1000.0,0.00051,30]
[312992569,1706570466644,-1000.0,0.00051,30]
[312992570,1706570466667,-1000.0,0.00051,30]
[312992571,1706570466690,-1000.0,0.00051,30]
[312992572,1706570466714,-1000.0,0.00051,30]
[312992573,1706570466738,-1000.0,0.00051,30]
[312992574,1706570466761,-1000.0,0.00051,30]
[312992575,1706570466783,-1000.0,0.00051,30]
[312992576,1706570466806,-1000.0,0.00051,30]
[312992577,1706570466830,-1000.0,0.00051,30]
[312992578,1706570466859,-1000.0,0.00051,30]
[312992579,1706570466883,-1000.0,0.00051,30]
[312992580,1706570466905,-1000.0,0.00051,30]
[312992581,1706570466929,-1000.0,0.00051,30]
[312992582,1706570466955,-1000.0,0.00051,30]
[312992583,1706570466984,-1000.0,0.00051,30]
[312992584,1706570467007,-1000.0,0.00051,30]
[312992585,1706570467030,-1000.0,0.00051,30]
[312992586,1706570467057,-1003.79,0.00051,30]
[312992587,1706570467094,-151.013,0.00051098,60]
[312992588,1706570467126,-151.013,0.00051198,60]
[312992589,1706570467159,-151.013,0.00051298,59]
[312992590,1706570467185,-4995.24975,0.000513,120]
[312992591,1706570467215,-644.14,0.00051308,120]
[312992592,1706570467246,-2601.29043,0.0005139,56]
[312992593,1706570467274,-151.013,0.00051398,59]
[312992594,1706570467315,-648311.82,0.000514,120]
[312992595,1706570467344,-216.25780931,0.000514,120]
[312992596,1706570467371,-150.0,0.00051445,30]
[312992597,1706570467400,-151.013,0.00051448,60]
[312992598,1706570467429,-150.0,0.00051491,30]
[312992599,1706570467473,-160.07544071,0.000515,30]
[312992600,1706570467501,-82325.05123192,0.000515,120]
[312992601,1706570484269,-6407.0,0.0005,30]
[312992602,1706570484299,-547787.04876808,0.000515,120]
[312992603,1706570484323,-276.84542602,0.000515,120]
[312992604,1706570484348,-1000000.0,0.000515,120]
[312992605,1706570484372,-445529.1058059,0.000515,120]
[312992606,1706570487993,-80426.5341941,0.000515,120]
[312992607,1706570488022,-150.0,0.00051512,30]
[312992608,1706570488047,-150.0,0.00051514,30]
[312992609,1706570488070,-150.0,0.00051521,30]
[312992610,1706570488097,-172.525668,0.00051535,30]
[312992611,1706570488121,-150.0,0.00051546,30]
[312992612,1706570488146,-150.0,0.00051584,30]
[312992613,1706570488177,-500.0,0.0005159,30]
[312992614,1706570488203,-151.013,0.00051598,59]
[312992615,1706570488227,-4071.19748898,0.000516,76]
[312992616,1706570488256,-547.29656313,0.000516,49]
[312992617,1706570488281,-150.0,0.00051634,30]
[312992618,1706570488305,-402.91,0.00051644,30]
[312992619,1706570488331,-402.91,0.00051644,30]
[312992620,1706570488355,-758.0,0.00051644,30]
[312992621,1706570488379,-944.07,0.00051644,30]
[312992622,1706570488405,-402.91,0.00051644,30]
[312992623,1706570488429,-944.07,0.00051644,30]
[312992624,1706570488454,-944.07,0.00051644,30]
[312992625,1706570488479,-402.91,0.00051644,30]
[312992626,1706570488503,-944.07,0.00051644,30]
[312992627,1706570488527,-402.91,0.00051644,30]
[312992628,1706570488552,-402.91,0.00051644,30]
[312992629,1706570488576,-944.07,0.00051644,30]
[312992630,1706570488601,-402.91,0.00051644,30]
[312992631,1706570488625,-944.07,0.00051644,30]
[312992632,1706570488653,-402.91,0.00051644,30]
[312992633,1706570488677,-944.07,0.00051644,30]
[312992634,1706570488702,-402.91,0.00051644,30]
[312992635,1706570488726,-944.07,0.00051644,30]
[312992636,1706570488751,-402.91,0.00051644,30]
[312992637,1706570488775,-944.07,0.00051644,30]
[312992638,1706570488800,-150.0,0.00051654,30]
[312992639,1706570488826,-151.013,0.00051698,58]
[312992640,1706570488851,-1337.65060988,0.000517,120]
[312992641,1706570488875,-7292.47268157,0.000517,120]
[312992642,1706570488900,-1000000.0,0.000517,120]
[312992643,1706570488926,-332080.0,0.000517,120]
[312992644,1706570488950,-4071.19748891,0.000517,76]
[312992645,1706570488974,-150.0,0.000517,30]
[312992646,1706570489001,-150.0,0.00051724,30]
[312992647,1706570489026,-195.96504941,0.00051781,120]
[312992648,1706570489051,-195.96504941,0.00051781,120]
[312992649,1706570489076,-150.0,0.00051794,30]
[312992650,1706570489100,-150.0,0.00051794,30]
[312992651,1706570489124,-150.0,0.00051794,30]
[312992652,1706570489147,-150.0,0.00051794,30]
[312992653,1706570489171,-150.0,0.00051794,30]
[312992654,1706570489195,-151.013,0.00051798,58]
[312992655,1706570489220,-976.0,0.000518,120]
[312992656,1706570489244,-4071.19748891,0.000518,77]
[312992657,1706570489269,-158.39738994,0.00051848,31]
[312992658,1706570489292,-500.0,0.00051863,30]
[312992659,1706570489319,-150.0,0.00051864,30]
[312992660,1706570489343,-150.0,0.00051888,30]
[312992661,1706570489369,-151.013,0.00051898,58]
[312992662,1706570489392,-163180.99008928,0.000519,120]
[312992663,1706570489415,-942.27542594,0.000519,30]
[312992664,1706570489439,-4071.19748891,0.000519,78]
[312992665,1706570489465,-150.0,0.00051934,30]
[312992666,1706570489490,-3121.03136642,0.00051947,120]
[312992667,1706570489514,-150.0,0.00051954,30]
[312992668,1706570489539,-3267.0,0.0005198,120]
[312992669,1706570489562,-2141.0,0.0005198,120]
[312992670,1706570489586,-3267.0,0.0005199,120]
[312992671,1706570489611,-2141.0,0.0005199,120]
[312992672,1706570489635,-173.95567052,0.00051996,90]
[312992673,1706570489662,-151.013,0.00051998,58]
[312992674,1706570489688,-364359.35528669,0.00052,120]
[312992675,1706570494933,-635640.64471331,0.00052,120]
[312992676,1706570494957,-813719.0,0.00052,120]
[312992677,1706570494981,-1823.0,0.00052,90]
[312992678,1706570495008,-868.2305,0.00052,120]
[312992679,1706570495033,-1029.0,0.00052,30]
[312992680,1706570495058,-115549.49501029,0.00052,31]
[312992681,1706570495084,-10050.10664616,0.00052,120]
[312992682,1706570495110,-14478.5,0.00052,120]
[312992683,1706570495435,-3826.0,0.00052,120]
[312992684,1706570495477,-50000.0,0.00052,30]
[312992685,1706570495505,-353016.02313024,0.00052,120]
[312992686,1706570498568,-28928.88093057,0.0005,30]
[312992687,1706570498599,-172946.97686976,0.00052,120]
[312992688,1706570498623,-5000.0,0.00052,120]
[312992689,1706570498647,-600.0,0.00052,53]
[312992690,1706570498671,-1048.0,0.00052,120]
[312992691,1706570498695,-4071.19748891,0.00052,78]
[312992692,1706570498718,-1390.331885,0.00052,35]
[312992693,1706570498742,-633.08022766,0.00052,60]
[312992694,1706570498765,-9304.07568592,0.00052,60]
[312992695,1706570498789,-1853.73813162,0.00052,60]
[312992696,1706570498812,-1674.95,0.00052,60]
[312992697,1706570498835,-150.0,0.00052004,30]
[312992698,1706570498859,-154.00543909,0.00052018,60]
[312992699,1706570498883,-157.47372314,0.00052025,60]
[312992700,1706570498908,-150.84349499,0.00052029,52]
[312992701,1706570498931,-463.45,0.00052037,120]
[312992702,1706570498954,-218.121,0.00052037,120]
[312992703,1706570498978,-563.448,0.00052037,120]
[312992704,1706570499005,-1233.0,0.00052037,120]
[312992705,1706570499028,-1125.769,0.00052037,120]
[312992706,1706570499051,-320.0,0.00052037,120]
[312992707,1706570499075,-154.67281811,0.00052039,60]
[312992708,1706570499098,-150.0,0.00052042,30]
[312992709,1706570499123,-150.52477514,0.0005205,60]
[312992710,1706570499147,-152.43187862,0.00052054,31]
[312992711,1706570499171,-296.9205369,0.00052054,31]
[312992712,1706570499194,-500.0,0.00052054,31]
[312992713,1706570499216,-500.0,0.00052054,31]